[Event "*** Qualifier 4: Titled Tuesday 3|2 Blitz"]
[Site "Chess.com"]
[Date "2017.04.25"]
[Round "1"]
[White "igorkovalenko"]
[Black "Robin-Side"]
[Result "1-0"]
[WhiteElo "2655"]
[BlackElo "2322"]
[TimeControl "180+2"]
[EndTime "13:03:13 PDT"]
[Termination "igorkovalenko won by resignation"]

1. c4 {[%clk 0:02:59.8]} 1... c5 {[%clk 0:03:00.5]} 2. Nc3 {[%clk 0:03:01]} 2...
Nc6 {[%clk 0:03:01.8]} 3. g3 {[%clk 0:03:02.2]} 3... g6 {[%clk 0:03:02.7]} 4.
Bg2 {[%clk 0:03:03.8]} 4... Bg7 {[%clk 0:03:04.2]} 5. Nf3 {[%clk 0:03:04.9]}
5... d6 {[%clk 0:03:02.5]} 6. a3 {[%clk 0:03:05.5]} 6... e5 {[%clk 0:03:01.7]}
7. Rb1 {[%clk 0:03:04.8]} 7... a5 {[%clk 0:03:02.5]} 8. d3 {[%clk 0:03:05.8]}
8... Nge7 {[%clk 0:03:03]} 9. Bd2 {[%clk 0:03:06.4]} 9... O-O {[%clk 0:03:02.4]}
10. O-O {[%clk 0:03:07.6]} 10... h6 {[%clk 0:02:53.5]} 11. Qc1 {[%clk
0:03:07.5]} 11... Kh7 {[%clk 0:02:54.4]} 12. Ne1 {[%clk 0:03:07.3]} 12... Be6
{[%clk 0:02:54.1]} 13. Nc2 {[%clk 0:03:08.8]} 13... d5 {[%clk 0:02:51.2]} 14.
cxd5 {[%clk 0:03:05.9]} 14... Nxd5 {[%clk 0:02:52]} 15. Ne3 {[%clk 0:03:01.3]}
15... Nde7 {[%clk 0:02:48.5]} 16. Nc4 {[%clk 0:02:43.3]} 16... b6 {[%clk
0:02:45.9]} 17. Nb5 {[%clk 0:02:32.8]} 17... Rb8 {[%clk 0:02:41.8]} 18. b4
{[%clk 0:02:32.3]} 18... axb4 {[%clk 0:02:38.3]} 19. axb4 {[%clk 0:02:34.2]}
19... Nxb4 {[%clk 0:02:35]} 20. Bxb4 {[%clk 0:02:36.1]} 20... cxb4 {[%clk
0:02:35.7]} 21. Rxb4 {[%clk 0:02:38]} 21... Bd5 {[%clk 0:02:20.1]} 22. Ncd6
{[%clk 0:02:32]} 22... Bxg2 {[%clk 0:02:15.6]} 23. Kxg2 {[%clk 0:02:33.9]} 23...
Nc6 {[%clk 0:02:13.1]} 24. Qxc6 {[%clk 0:02:34.3]} 1-0

[Event "*** Qualifier 4: Titled Tuesday 3|2 Blitz"]
[Site "Chess.com"]
[Date "2017.04.25"]
[Round "1"]
[White "jcgs1030"]
[Black "Gabrielian_Artur"]
[Result "0-1"]
[WhiteElo "2265"]
[BlackElo "2590"]
[TimeControl "180+2"]
[EndTime "13:03:32 PDT"]
[Termination "Gabrielian_Artur won by resignation"]

1. e4 {[%clk 0:03:00.6]} 1... e5 {[%clk 0:02:59.6]} 2. Nf3 {[%clk 0:02:57.4]}
2... Nc6 {[%clk 0:03:00.6]} 3. Bb5 {[%clk 0:02:57.9]} 3... a6 {[%clk 0:03:00.2]}
4. Ba4 {[%clk 0:02:58.9]} 4... d6 {[%clk 0:03:00.9]} 5. d4 {[%clk 0:02:58.5]}
5... exd4 {[%clk 0:02:59.5]} 6. Nxd4 {[%clk 0:02:57.5]} 6... Bd7 {[%clk
0:02:58.6]} 7. O-O {[%clk 0:02:56.4]} 7... Nf6 {[%clk 0:02:58.4]} 8. Nc3 {[%clk
0:02:56.2]} 8... Be7 {[%clk 0:02:57.2]} 9. h3 {[%clk 0:02:55.9]} 9... O-O {[%clk
0:02:55.3]} 10. Bxc6 {[%clk 0:02:56.7]} 10... bxc6 {[%clk 0:02:56]} 11. Qf3
{[%clk 0:02:57.2]} 11... Re8 {[%clk 0:02:48.9]} 12. Bg5 {[%clk 0:02:56.9]} 12...
h6 {[%clk 0:02:49.4]} 13. Bh4 {[%clk 0:02:57.1]} 13... Rb8 {[%clk 0:02:42]} 14.
b3 {[%clk 0:02:54.7]} 14... Rb4 {[%clk 0:02:39.1]} 15. Rad1 {[%clk 0:02:54.7]}
15... c5 {[%clk 0:02:40.5]} 16. Nf5 {[%clk 0:02:52.8]} 16... Bxf5 {[%clk
0:02:40.8]} 17. Qxf5 {[%clk 0:02:54.7]} 17... Nxe4 {[%clk 0:02:33.8]} 18. Nxe4
{[%clk 0:02:55.2]} 18... Bxh4 {[%clk 0:02:33.8]} 19. Nxc5 {[%clk 0:02:56.3]}
19... Rb5 {[%clk 0:02:25.2]} 20. g3 {[%clk 0:02:35.8]} 20... Rxc5 {[%clk
0:02:20.2]} 21. Qxc5 {[%clk 0:02:36]} 21... dxc5 {[%clk 0:02:21.2]} 22. Rxd8
{[%clk 0:02:35.6]} 22... Bxd8 {[%clk 0:02:22.7]} 23. Rc1 {[%clk 0:02:31.2]}
23... Bf6 {[%clk 0:02:21.2]} 24. Kf1 {[%clk 0:02:31.4]} 24... Rd8 {[%clk
0:02:07.7]} 25. Ke2 {[%clk 0:02:31.5]} 25... Bc3 {[%clk 0:02:08.7]} 0-1

[Event "*** Qualifier 4: Titled Tuesday 3|2 Blitz"]
[Site "Chess.com"]
[Date "2017.04.25"]
[Round "1"]
[White "swayamsm"]
[Black "kharov2001"]
[Result "1-0"]
[WhiteElo "2428"]
[BlackElo "1938"]
[TimeControl "180+2"]
[EndTime "13:04:46 PDT"]
[Termination "swayamsm won by checkmate"]

1. d4 {[%clk 0:02:57.5]} 1... Nf6 {[%clk 0:02:59.2]} 2. c4 {[%clk 0:02:54.3]}
2... g6 {[%clk 0:02:59.9]} 3. Nc3 {[%clk 0:02:55.8]} 3... Bg7 {[%clk 0:03:00.8]}
4. e4 {[%clk 0:02:56.8]} 4... d6 {[%clk 0:03:01.8]} 5. Be2 {[%clk 0:02:58.2]}
5... O-O {[%clk 0:03:01.6]} 6. Be3 {[%clk 0:02:59.8]} 6... e5 {[%clk 0:03:00.4]}
7. d5 {[%clk 0:03:00.3]} 7... a5 {[%clk 0:03:00.3]} 8. g4 {[%clk 0:03:00.8]}
8... Na6 {[%clk 0:02:31.8]} 9. g5 {[%clk 0:02:55.1]} 9... Ne8 {[%clk 0:02:31.2]}
10. h4 {[%clk 0:02:56.5]} 10... f5 {[%clk 0:02:31]} 11. gxf6 {[%clk 0:02:48.8]}
11... Bxf6 {[%clk 0:02:31]} 12. h5 {[%clk 0:02:48.2]} 12... g5 {[%clk
0:02:31.3]} 13. h6 {[%clk 0:02:47.3]} 13... c6 {[%clk 0:02:24.4]} 14. Nf3 {[%clk
0:02:43.9]} 14... Kh8 {[%clk 0:02:25.3]} 15. Qd2 {[%clk 0:02:40.4]} 15... g4
{[%clk 0:02:19.3]} 16. Ng5 {[%clk 0:02:37.2]} 16... Nc5 {[%clk 0:02:11.3]} 17.
dxc6 {[%clk 0:02:29.6]} 17... bxc6 {[%clk 0:02:11.5]} 18. Rg1 {[%clk 0:02:23.4]}
18... Rb8 {[%clk 0:01:36.2]} 19. O-O-O {[%clk 0:02:17.4]} 19... a4 {[%clk
0:01:24.6]} 20. Bxg4 {[%clk 0:02:15.4]} 20... Bxg4 {[%clk 0:01:26.1]} 21. Rxg4
{[%clk 0:02:17.3]} 21... Qa5 {[%clk 0:01:16.1]} 22. Rdg1 {[%clk 0:02:14.3]}
22... d5 {[%clk 0:01:08.5]} 23. Nf7+ {[%clk 0:02:14.1]} 23... Rxf7 {[%clk
0:01:07.3]} 24. Rg8# {[%clk 0:02:16]} 1-0

[Event "*** Qualifier 4: Titled Tuesday 3|2 Blitz"]
[Site "Chess.com"]
[Date "2017.04.25"]
[Round "1"]
[White "Hikaru"]
[Black "grzechu96"]
[Result "1-0"]
[WhiteElo "2953"]
[BlackElo "2388"]
[TimeControl "180+2"]
[EndTime "13:04:50 PDT"]
[Termination "Hikaru won by resignation"]

1. b3 {[%clk 0:03:01.9]} 1... Nf6 {[%clk 0:02:59.5]} 2. Bb2 {[%clk 0:03:03.8]}
2... b6 {[%clk 0:03:01]} 3. e3 {[%clk 0:03:04.4]} 3... Bb7 {[%clk 0:03:02.5]} 4.
Nf3 {[%clk 0:03:06.3]} 4... e6 {[%clk 0:02:59.4]} 5. g3 {[%clk 0:03:07.4]} 5...
Be7 {[%clk 0:03:01.1]} 6. Bg2 {[%clk 0:03:08.4]} 6... O-O {[%clk 0:03:02.9]} 7.
O-O {[%clk 0:03:10]} 7... c5 {[%clk 0:03:03.6]} 8. c4 {[%clk 0:03:10.4]} 8... d6
{[%clk 0:03:04.1]} 9. d4 {[%clk 0:03:11.2]} 9... Nbd7 {[%clk 0:03:04.6]} 10. Nc3
{[%clk 0:03:12.1]} 10... cxd4 {[%clk 0:02:56.7]} 11. Nxd4 {[%clk 0:03:10.9]}
11... Bxg2 {[%clk 0:02:57.3]} 12. Kxg2 {[%clk 0:03:12.8]} 12... Qc7 {[%clk
0:02:58.9]} 13. Ncb5 {[%clk 0:03:13.6]} 13... Qb7+ {[%clk 0:02:59.8]} 14. Qf3
{[%clk 0:03:15.3]} 14... Qxf3+ {[%clk 0:02:58.8]} 15. Kxf3 {[%clk 0:03:17.2]}
15... Rfc8 {[%clk 0:02:54.4]} 16. Ba3 {[%clk 0:03:02.9]} 16... Nc5 {[%clk
0:02:52.1]} 17. Rfd1 {[%clk 0:03:02.1]} 17... d5 {[%clk 0:02:46.4]} 18. cxd5
{[%clk 0:02:45.2]} 18... Nxd5 {[%clk 0:02:47.1]} 19. Nf5 {[%clk 0:02:38.7]}
19... Bf8 {[%clk 0:02:02.7]} 20. Nfd6 {[%clk 0:02:35.9]} 20... Rc6 {[%clk
0:01:58.1]} 21. e4 {[%clk 0:02:32.7]} 21... Bxd6 {[%clk 0:01:51.5]} 22. exd5
{[%clk 0:02:32.8]} 22... exd5 {[%clk 0:01:52]} 23. Rxd5 {[%clk 0:02:34.7]} 23...
Bf8 {[%clk 0:01:52]} 24. Rad1 {[%clk 0:02:35.5]} 24... Rf6+ {[%clk 0:01:51.5]}
25. Kg2 {[%clk 0:02:34.7]} 25... a6 {[%clk 0:01:34.9]} 26. Bxc5 {[%clk
0:02:21.4]} 26... Bxc5 {[%clk 0:01:29.3]} 27. Rd8+ {[%clk 0:02:19.3]} 27... Rxd8
{[%clk 0:01:29.5]} 28. Rxd8+ {[%clk 0:02:21.2]} 28... Bf8 {[%clk 0:01:31.2]} 29.
Nc7 {[%clk 0:02:22.6]} 29... a5 {[%clk 0:01:18.2]} 30. Nd5 {[%clk 0:02:21.9]}
30... Rc6 {[%clk 0:01:14.9]} 31. Ne7+ {[%clk 0:02:22.2]} 1-0

[Event "*** Qualifier 4: Titled Tuesday 3|2 Blitz"]
[Site "Chess.com"]
[Date "2017.04.25"]
[Round "1"]
[White "Osensei"]
[Black "rubhani"]
[Result "0-1"]
[WhiteElo "1655"]
[BlackElo "2396"]
[TimeControl "180+2"]
[EndTime "13:05:08 PDT"]
[Termination "rubhani won by resignation"]

1. e4 {[%clk 0:01:50.6]} 1... c5 {[%clk 0:02:55.7]} 2. Nf3 {[%clk 0:01:52.2]}
2... d6 {[%clk 0:02:56.5]} 3. d4 {[%clk 0:01:53.3]} 3... cxd4 {[%clk 0:02:58.4]}
4. Nxd4 {[%clk 0:01:51.5]} 4... Nf6 {[%clk 0:02:59.8]} 5. Nc3 {[%clk 0:01:53.1]}
5... a6 {[%clk 0:03:00.8]} 6. h3 {[%clk 0:01:47.5]} 6... e5 {[%clk 0:03:00.9]}
7. Nde2 {[%clk 0:01:48.5]} 7... h5 {[%clk 0:03:02]} 8. g3 {[%clk 0:01:48.6]}
8... b5 {[%clk 0:03:02.6]} 9. Bg2 {[%clk 0:01:47]} 9... Bb7 {[%clk 0:03:02.9]}
10. Bg5 {[%clk 0:01:43.1]} 10... Nbd7 {[%clk 0:03:03.4]} 11. O-O {[%clk
0:01:33.9]} 11... Be7 {[%clk 0:03:02.1]} 12. a3 {[%clk 0:01:23.8]} 12... Rc8
{[%clk 0:02:59.9]} 13. Qd2 {[%clk 0:01:24.5]} 13... O-O {[%clk 0:02:57.9]} 14.
Rad1 {[%clk 0:01:22.9]} 14... Qc7 {[%clk 0:02:58.7]} 15. Kh1 {[%clk 0:00:54.7]}
15... Rfd8 {[%clk 0:02:53.6]} 16. f4 {[%clk 0:00:48.9]} 16... Nb6 {[%clk
0:02:41.6]} 17. b3 {[%clk 0:00:39.6]} 17... d5 {[%clk 0:02:33.8]} 18. Bxf6
{[%clk 0:00:25.9]} 18... Bxf6 {[%clk 0:02:29.4]} 19. exd5 {[%clk 0:00:20.8]}
19... exf4 {[%clk 0:02:28.3]} 20. Qxf4 {[%clk 0:00:19.3]} 20... Qxf4 {[%clk
0:02:27.5]} 21. Rxf4 {[%clk 0:00:19.8]} 21... Bxc3 {[%clk 0:02:28.6]} 22. Nxc3
{[%clk 0:00:19.9]} 22... Rxc3 {[%clk 0:02:30.5]} 0-1

[Event "*** Qualifier 4: Titled Tuesday 3|2 Blitz"]
[Site "Chess.com"]
[Date "2017.04.25"]
[Round "1"]
[White "silverback96"]
[Black "asms9699"]
[Result "0-1"]
[WhiteElo "2034"]
[BlackElo "2447"]
[TimeControl "180+2"]
[EndTime "13:05:20 PDT"]
[Termination "asms9699 won by resignation"]

1. Nf3 {[%clk 0:02:58.2]} 1... d5 {[%clk 0:02:59.1]} 2. g3 {[%clk 0:03:00.1]}
2... c5 {[%clk 0:02:59.4]} 3. Bg2 {[%clk 0:03:01.4]} 3... Nc6 {[%clk 0:03:00.7]}
4. c4 {[%clk 0:03:02.1]} 4... e6 {[%clk 0:02:58.8]} 5. O-O {[%clk 0:03:02.1]}
5... Nf6 {[%clk 0:02:59.5]} 6. cxd5 {[%clk 0:02:58]} 6... exd5 {[%clk
0:02:59.6]} 7. d4 {[%clk 0:02:58.9]} 7... Be7 {[%clk 0:02:57.6]} 8. Nc3 {[%clk
0:03:00.3]} 8... O-O {[%clk 0:02:58.4]} 9. dxc5 {[%clk 0:03:02.2]} 9... Bxc5
{[%clk 0:03:00.1]} 10. Na4 {[%clk 0:03:02.8]} 10... Be7 {[%clk 0:02:59.6]} 11.
Be3 {[%clk 0:03:03.5]} 11... b6 {[%clk 0:02:49.8]} 12. Nd4 {[%clk 0:02:49.4]}
12... Nxd4 {[%clk 0:02:48.5]} 13. Qxd4 {[%clk 0:02:51.3]} 13... Be6 {[%clk
0:02:41.2]} 14. Rfd1 {[%clk 0:02:47.4]} 14... Rc8 {[%clk 0:02:39.7]} 15. a3
{[%clk 0:02:34]} 15... Rc4 {[%clk 0:02:34.2]} 16. Qd3 {[%clk 0:02:30.2]} 16...
Rxa4 {[%clk 0:02:33.3]} 17. Rac1 {[%clk 0:02:17.1]} 17... Rc4 {[%clk 0:02:16.4]}
18. Rb1 {[%clk 0:01:58.2]} 18... Qc8 {[%clk 0:02:14.6]} 19. Bd4 {[%clk
0:01:52.4]} 19... Bf5 {[%clk 0:02:07]} 20. e4 {[%clk 0:01:49.3]} 20... Bxe4
{[%clk 0:02:03.5]} 21. Bxe4 {[%clk 0:01:49.9]} 21... dxe4 {[%clk 0:02:05]} 22.
Qe3 {[%clk 0:01:47.8]} 22... Bc5 {[%clk 0:02:02.1]} 23. h4 {[%clk 0:01:44]}
23... Bxd4 {[%clk 0:02:01.5]} 24. Rxd4 {[%clk 0:01:45.9]} 24... Rxd4 {[%clk
0:02:03.1]} 25. Qxd4 {[%clk 0:01:47.8]} 25... Rd8 {[%clk 0:02:03.8]} 26. Qe5
{[%clk 0:01:48.7]} 26... h6 {[%clk 0:01:56.5]} 27. Kg2 {[%clk 0:01:45.9]} 27...
Qg4 {[%clk 0:01:53.7]} 28. Qe7 {[%clk 0:01:43.6]} 28... Qf3+ {[%clk 0:01:51.6]}
29. Kg1 {[%clk 0:01:41.8]} 29... Rd2 {[%clk 0:01:48.7]} 30. Rf1 {[%clk
0:01:42.5]} 30... e3 {[%clk 0:01:47.7]} 31. Qe5 {[%clk 0:01:32.8]} 31... exf2+
{[%clk 0:01:44.3]} 32. Kh2 {[%clk 0:01:33.4]} 0-1

[Event "*** Qualifier 4: Titled Tuesday 3|2 Blitz"]
[Site "Chess.com"]
[Date "2017.04.25"]
[Round "1"]
[White "ruvat"]
[Black "XDPS"]
[Result "0-1"]
[WhiteElo "2247"]
[BlackElo "2532"]
[TimeControl "180+2"]
[EndTime "13:05:27 PDT"]
[Termination "XDPS won by resignation"]

1. d4 {[%clk 0:02:48.2]} 1... d5 {[%clk 0:03:00.1]} 2. c4 {[%clk 0:02:49.1]}
2... dxc4 {[%clk 0:03:01.3]} 3. Nf3 {[%clk 0:02:50.2]} 3... Nf6 {[%clk
0:03:01.9]} 4. Qa4+ {[%clk 0:02:50.8]} 4... Nc6 {[%clk 0:02:54.6]} 5. Nc3 {[%clk
0:02:50.1]} 5... e6 {[%clk 0:02:45.4]} 6. e4 {[%clk 0:02:49.4]} 6... Bb4 {[%clk
0:02:27.4]} 7. e5 {[%clk 0:02:34.9]} 7... Ne4 {[%clk 0:02:21.7]} 8. Bd2 {[%clk
0:02:32.1]} 8... Nxd2 {[%clk 0:02:22.8]} 9. Kxd2 {[%clk 0:02:11.8]} 9... O-O
{[%clk 0:02:21.5]} 10. Bxc4 {[%clk 0:02:10.5]} 10... Nxd4 {[%clk 0:02:18.7]} 11.
Ke3 {[%clk 0:01:49.7]} 11... Bc5 {[%clk 0:02:13.3]} 12. Ne4 {[%clk 0:01:26.3]}
12... Bb6 {[%clk 0:02:07.7]} 13. Kf4 {[%clk 0:01:22.8]} 13... Bd7 {[%clk
0:01:54.3]} 14. Qd1 {[%clk 0:01:21.3]} 14... Nf5 {[%clk 0:01:52.5]} 15. g4
{[%clk 0:01:15.8]} 15... Ne7 {[%clk 0:01:53.5]} 16. Kg3 {[%clk 0:01:15]} 16...
Bc6 {[%clk 0:01:54.5]} 17. Qe2 {[%clk 0:01:13.3]} 17... Nd5 {[%clk 0:01:50.9]}
18. Rad1 {[%clk 0:01:12.5]} 18... Qe7 {[%clk 0:01:51.9]} 19. g5 {[%clk
0:01:03.8]} 19... Kh8 {[%clk 0:01:48.4]} 20. h4 {[%clk 0:01:03.9]} 20... f6
{[%clk 0:01:48.6]} 21. Bxd5 {[%clk 0:00:46.9]} 21... exd5 {[%clk 0:01:49.3]} 22.
gxf6 {[%clk 0:00:35.7]} 22... gxf6 {[%clk 0:01:50.2]} 23. Nxf6 {[%clk
0:00:36.8]} 23... Rxf6 {[%clk 0:01:50]} 0-1

[Event "*** Qualifier 4: Titled Tuesday 3|2 Blitz"]
[Site "Chess.com"]
[Date "2017.04.25"]
[Round "1"]
[White "hansen"]
[Black "GMOratovsky"]
[Result "1-0"]
[WhiteElo "2659"]
[BlackElo "2324"]
[TimeControl "180+2"]
[EndTime "13:06:16 PDT"]
[Termination "hansen won by resignation"]

1. e4 {[%clk 0:03:00.6]} 1... d6 {[%clk 0:02:56.8]} 2. d4 {[%clk 0:03:01.4]}
2... Nf6 {[%clk 0:02:58]} 3. Nc3 {[%clk 0:03:02.7]} 3... e5 {[%clk 0:02:59.2]}
4. Nf3 {[%clk 0:03:03.7]} 4... Nbd7 {[%clk 0:03:00]} 5. Bc4 {[%clk 0:03:03.5]}
5... exd4 {[%clk 0:03:00.6]} 6. Qxd4 {[%clk 0:03:02.5]} 6... Be7 {[%clk
0:03:01.4]} 7. O-O {[%clk 0:03:02.7]} 7... Nb6 {[%clk 0:03:01.2]} 8. Bb3 {[%clk
0:02:47.9]} 8... O-O {[%clk 0:02:58.7]} 9. a4 {[%clk 0:02:47.4]} 9... a5 {[%clk
0:02:58.3]} 10. h3 {[%clk 0:02:45.2]} 10... Nfd7 {[%clk 0:02:57.9]} 11. Be3
{[%clk 0:02:46]} 11... Bf6 {[%clk 0:02:57.2]} 12. Qd2 {[%clk 0:02:46.1]} 12...
Re8 {[%clk 0:02:58.7]} 13. Rfe1 {[%clk 0:02:46.9]} 13... Nc5 {[%clk 0:02:39.3]}
14. Rad1 {[%clk 0:02:43.2]} 14... Bxc3 {[%clk 0:02:29.8]} 15. Qxc3 {[%clk
0:02:43.9]} 15... Nxe4 {[%clk 0:02:27.8]} 16. Qd3 {[%clk 0:02:35]} 16... Nd7
{[%clk 0:02:09.7]} 17. Bg5 {[%clk 0:02:19]} 17... Nef6 {[%clk 0:01:43.5]} 18.
Qc4 {[%clk 0:02:01.9]} 18... Rf8 {[%clk 0:01:27.5]} 19. Qh4 {[%clk 0:01:48.5]}
19... Nc5 {[%clk 0:01:02.6]} 20. Nd4 {[%clk 0:01:46.8]} 20... Bd7 {[%clk
0:00:47.2]} 21. Re3 {[%clk 0:01:46.7]} 21... Nxb3 {[%clk 0:00:40.3]} 22. cxb3
{[%clk 0:01:45.8]} 22... Re8 {[%clk 0:00:22.8]} 23. Rf3 {[%clk 0:01:40.7]} 23...
h6 {[%clk 0:00:11.5]} 24. Bxf6 {[%clk 0:01:41]} 24... gxf6 {[%clk 0:00:11.2]}
25. Qxh6 {[%clk 0:01:42.2]} 25... Re5 {[%clk 0:00:09.8]} 26. h4 {[%clk
0:01:40.1]} 26... Qf8 {[%clk 0:00:08.3]} 27. Rg3+ {[%clk 0:01:40.1]} 1-0

[Event "*** Qualifier 4: Titled Tuesday 3|2 Blitz"]
[Site "Chess.com"]
[Date "2017.04.25"]
[Round "1"]
[White "hsskoo"]
[Black "amaidel"]
[Result "0-1"]
[WhiteElo "1939"]
[BlackElo "2423"]
[TimeControl "180+2"]
[EndTime "13:06:37 PDT"]
[Termination "amaidel won on time"]

1. e4 {[%clk 0:02:58.8]} 1... e6 {[%clk 0:03:00.3]} 2. d4 {[%clk 0:02:58.8]}
2... d5 {[%clk 0:03:01.4]} 3. Nd2 {[%clk 0:02:57.9]} 3... Be7 {[%clk 0:03:01.5]}
4. Ngf3 {[%clk 0:02:58.1]} 4... Nf6 {[%clk 0:03:02.2]} 5. Bd3 {[%clk 0:02:58.2]}
5... dxe4 {[%clk 0:03:01.2]} 6. Nxe4 {[%clk 0:02:58.3]} 6... Nbd7 {[%clk
0:03:02.2]} 7. O-O {[%clk 0:02:58]} 7... Nxe4 {[%clk 0:03:02.4]} 8. Bxe4 {[%clk
0:02:58.4]} 8... Nf6 {[%clk 0:03:03.5]} 9. Bd3 {[%clk 0:02:59.2]} 9... O-O
{[%clk 0:03:04.5]} 10. Bg5 {[%clk 0:03:00.1]} 10... b6 {[%clk 0:03:04.9]} 11. c3
{[%clk 0:02:57.7]} 11... Bb7 {[%clk 0:03:05.1]} 12. Re1 {[%clk 0:02:56.9]} 12...
Rc8 {[%clk 0:03:01]} 13. Qe2 {[%clk 0:02:57]} 13... c5 {[%clk 0:03:00.2]} 14.
dxc5 {[%clk 0:02:55.9]} 14... Rxc5 {[%clk 0:03:00.5]} 15. Rad1 {[%clk 0:02:53]}
15... Qa8 {[%clk 0:02:37.7]} 16. Bxf6 {[%clk 0:02:25.9]} 16... Bxf6 {[%clk
0:02:39.6]} 17. Be4 {[%clk 0:02:12.8]} 17... h6 {[%clk 0:02:30.4]} 18. Rd7
{[%clk 0:01:59.9]} 18... Bxe4 {[%clk 0:02:18.4]} 19. Qxe4 {[%clk 0:01:56.3]}
19... a5 {[%clk 0:01:45.3]} 20. Qxa8 {[%clk 0:01:45.3]} 20... Rxa8 {[%clk
0:01:47.2]} 21. Re2 {[%clk 0:01:28.6]} 21... Rb8 {[%clk 0:01:36.6]} 0-1

[Event "*** Qualifier 4: Titled Tuesday 3|2 Blitz"]
[Site "Chess.com"]
[Date "2017.04.25"]
[Round "1"]
[White "Enzy63"]
[Black "Gabix_94"]
[Result "0-1"]
[WhiteElo "2024"]
[BlackElo "2441"]
[TimeControl "180+2"]
[EndTime "13:06:41 PDT"]
[Termination "Gabix_94 won by resignation"]

1. d4 {[%clk 0:02:59.2]} 1... Nf6 {[%clk 0:03:00.4]} 2. Nf3 {[%clk 0:02:59.5]}
2... c5 {[%clk 0:02:58]} 3. d5 {[%clk 0:03:00.1]} 3... e6 {[%clk 0:02:51.8]} 4.
c4 {[%clk 0:02:59.8]} 4... exd5 {[%clk 0:02:36.7]} 5. cxd5 {[%clk 0:03:01.7]}
5... d6 {[%clk 0:02:38.6]} 6. Nc3 {[%clk 0:03:02.5]} 6... g6 {[%clk 0:02:40]} 7.
h3 {[%clk 0:03:03.6]} 7... Bg7 {[%clk 0:02:40.1]} 8. e4 {[%clk 0:03:05.1]} 8...
O-O {[%clk 0:02:41.7]} 9. Bd3 {[%clk 0:03:06.5]} 9... Nbd7 {[%clk 0:02:42.9]}
10. O-O {[%clk 0:03:07.2]} 10... Re8 {[%clk 0:02:42.6]} 11. Bf4 {[%clk 0:03:06]}
11... c4 {[%clk 0:02:40.9]} 12. Bc2 {[%clk 0:02:59.7]} 12... Nc5 {[%clk
0:02:41]} 13. e5 {[%clk 0:02:54.6]} 13... Nh5 {[%clk 0:02:39.1]} 14. Bg5 {[%clk
0:02:53.8]} 14... Qb6 {[%clk 0:02:38.1]} 15. exd6 {[%clk 0:02:34.1]} 15... Bd7
{[%clk 0:02:27.8]} 16. Rb1 {[%clk 0:02:32.6]} 16... Qxd6 {[%clk 0:02:27.1]} 17.
Qd2 {[%clk 0:02:30.2]} 17... b5 {[%clk 0:02:25]} 18. Rfe1 {[%clk 0:02:17.6]}
18... b4 {[%clk 0:02:20.3]} 19. Ne4 {[%clk 0:02:18.4]} 19... Nxe4 {[%clk
0:02:21.2]} 20. Rxe4 {[%clk 0:02:18.2]} 20... c3 {[%clk 0:02:20]} 21. bxc3
{[%clk 0:02:16.9]} 21... bxc3 {[%clk 0:02:21.9]} 22. Qe3 {[%clk 0:02:02.8]}
22... Rxe4 {[%clk 0:02:19.4]} 23. Qxe4 {[%clk 0:01:59.6]} 23... Re8 {[%clk
0:02:19.4]} 24. Qc4 {[%clk 0:01:51.9]} 24... Rc8 {[%clk 0:02:18.5]} 25. Qe4
{[%clk 0:01:51.7]} 25... h6 {[%clk 0:02:19.2]} 26. Be7 {[%clk 0:01:45.4]} 26...
Qa6 {[%clk 0:02:17]} 27. g4 {[%clk 0:01:15.8]} 27... Nf6 {[%clk 0:02:14]} 28.
Bxf6 {[%clk 0:00:58.7]} 28... Qxf6 {[%clk 0:02:10.9]} 29. Rb7 {[%clk 0:00:48.1]}
29... Re8 {[%clk 0:02:10.9]} 30. Qd3 {[%clk 0:00:39.6]} 30... Rd8 {[%clk
0:02:02.8]} 31. Rxa7 {[%clk 0:00:32.3]} 31... h5 {[%clk 0:02:03]} 32. g5 {[%clk
0:00:20.9]} 32... Qf4 {[%clk 0:01:58.8]} 33. Qe4 {[%clk 0:00:20.7]} 33... Qc1+
{[%clk 0:01:56.4]} 34. Ne1 {[%clk 0:00:19.2]} 34... Re8 {[%clk 0:01:56.4]} 0-1

[Event "*** Qualifier 4: Titled Tuesday 3|2 Blitz"]
[Site "Chess.com"]
[Date "2017.04.25"]
[Round "1"]
[White "Ilja_Semjonovs"]
[Black "Gordima"]
[Result "1-0"]
[WhiteElo "2243"]
[BlackElo "2503"]
[TimeControl "180+2"]
[EndTime "13:06:51 PDT"]
[Termination "Ilja_Semjonovs won by resignation"]

1. e4 {[%clk 0:02:59.9]} 1... c5 {[%clk 0:03:00.8]} 2. Nf3 {[%clk 0:03:00.5]}
2... e6 {[%clk 0:03:02.2]} 3. d4 {[%clk 0:03:00.8]} 3... cxd4 {[%clk 0:03:03.5]}
4. Nxd4 {[%clk 0:03:02.1]} 4... a6 {[%clk 0:03:04.9]} 5. Nc3 {[%clk 0:03:03.1]}
5... d6 {[%clk 0:03:05.5]} 6. g3 {[%clk 0:03:03.8]} 6... b5 {[%clk 0:03:06.5]}
7. Bg2 {[%clk 0:03:04.9]} 7... Bb7 {[%clk 0:03:08]} 8. a3 {[%clk 0:03:06.2]}
8... Nd7 {[%clk 0:03:08.7]} 9. O-O {[%clk 0:03:06.8]} 9... Rc8 {[%clk
0:03:10.2]} 10. Be3 {[%clk 0:03:02.2]} 10... Be7 {[%clk 0:03:06.9]} 11. f4
{[%clk 0:03:01.7]} 11... Qc7 {[%clk 0:03:03.9]} 12. Qe2 {[%clk 0:02:59.7]} 12...
Ngf6 {[%clk 0:03:02.8]} 13. Rae1 {[%clk 0:02:50.1]} 13... O-O {[%clk 0:03:00.9]}
14. Kh1 {[%clk 0:02:50.1]} 14... Nb6 {[%clk 0:02:53.5]} 15. g4 {[%clk
0:02:47.6]} 15... Nc4 {[%clk 0:02:51.6]} 16. Bc1 {[%clk 0:02:48.6]} 16... Qb6
{[%clk 0:02:17.7]} 17. Nb3 {[%clk 0:02:39.7]} 17... a5 {[%clk 0:02:15.9]} 18. g5
{[%clk 0:02:40]} 18... Nd7 {[%clk 0:02:16]} 19. f5 {[%clk 0:02:37.3]} 19... Nde5
{[%clk 0:02:11.6]} 20. f6 {[%clk 0:02:36.1]} 20... Bd8 {[%clk 0:02:12.6]} 21.
fxg7 {[%clk 0:02:32.6]} 21... Re8 {[%clk 0:02:13.4]} 22. Qh5 {[%clk 0:02:04.6]}
22... b4 {[%clk 0:01:57.5]} 23. axb4 {[%clk 0:01:57.3]} 23... axb4 {[%clk
0:01:57.5]} 24. Ne2 {[%clk 0:01:56.6]} 24... Ne3 {[%clk 0:01:46.9]} 25. Bxe3
{[%clk 0:01:31.9]} 25... Qxe3 {[%clk 0:01:48.8]} 26. Nf4 {[%clk 0:01:26.6]}
26... Qa7 {[%clk 0:01:43.3]} 27. Nd3 {[%clk 0:01:06.1]} 27... Ng6 {[%clk
0:01:04.2]} 28. Rxf7 {[%clk 0:00:57.4]} 28... Kxf7 {[%clk 0:01:04.7]} 29. Qxh7
{[%clk 0:00:57.6]} 29... Rg8 {[%clk 0:00:59.7]} 30. Rf1+ {[%clk 0:00:58.4]}
30... Ke7 {[%clk 0:00:51.1]} 31. Qxg8 {[%clk 0:00:57.7]} 1-0